[Event "*** SCC Grand Prix: Titled Tuesday Blitz"]
[Site "Chess.com"]
[Date "2020.09.29"]
[Round "3"]
[White "x-0414717230"]
[Black "wonderfultime"]
[Result "1-0"]
[WhiteElo "2697"]
[BlackElo "2907"]
[TimeControl "180+1"]
[EndTime "10:23:46 PDT"]
[Termination "x-0414717230 won by checkmate"]

1. d4 {[%clk 0:03:00.9]} 1... d5 {[%clk 0:02:59.2]} 2. Nf3 {[%clk 0:03:01.2]}
2... Nf6 {[%clk 0:02:58.5]} 3. Bf4 {[%clk 0:03:01.5]} 3... e6 {[%clk 0:02:58.3]}
4. e3 {[%clk 0:03:01.6]} 4... Bd6 {[%clk 0:02:58.7]} 5. Ne5 {[%clk 0:03:01]}
5... O-O {[%clk 0:02:52.9]} 6. Bd3 {[%clk 0:03:00.7]} 6... c5 {[%clk 0:02:51.9]}
7. c3 {[%clk 0:03:00.1]} 7... Nc6 {[%clk 0:02:49.5]} 8. Nd2 {[%clk 0:02:51.9]}
8... Qe7 {[%clk 0:02:32.5]} 9. O-O {[%clk 0:02:48.2]} 9... Nd7 {[%clk
0:02:31.6]} 10. Nxd7 {[%clk 0:02:39.6]} 10... Bxd7 {[%clk 0:02:30.8]} 11. Bxd6
{[%clk 0:02:39.3]} 11... Qxd6 {[%clk 0:02:31.3]} 12. dxc5 {[%clk 0:02:39.5]}
12... Qxc5 {[%clk 0:02:29.7]} 13. Bxh7+ {[%clk 0:02:39.7]} 13... Kxh7 {[%clk
0:01:53.2]} 14. Qh5+ {[%clk 0:02:39.2]} 14... Kg8 {[%clk 0:01:48.4]} 15. Ne4
{[%clk 0:02:39.4]} 15... Qb6 {[%clk 0:01:11.1]} 16. Ng5 {[%clk 0:02:38.4]} 16...
Rfd8 {[%clk 0:01:10.2]} 17. Qxf7+ {[%clk 0:02:38.1]} 17... Kh8 {[%clk
0:01:10.6]} 18. f4 {[%clk 0:02:21.3]} 18... Qxe3+ {[%clk 0:01:05.2]} 19. Kh1
{[%clk 0:02:21.4]} 19... Be8 {[%clk 0:01:05.6]} 20. Qf8# {[%clk 0:02:20.8]} 1-0

[Event "*** SCC Grand Prix: Titled Tuesday Blitz"]
[Site "Chess.com"]
[Date "2020.09.29"]
[Round "3"]
[White "mjray79"]
[Black "SilviusTiberius"]
[Result "1-0"]
[WhiteElo "2422"]
[BlackElo "2625"]
[TimeControl "180+1"]
[EndTime "10:23:54 PDT"]
[Termination "mjray79 won by resignation"]

1. d4 {[%clk 0:03:00.9]} 1... Nf6 {[%clk 0:02:59.4]} 2. c4 {[%clk 0:03:01.2]}
2... g6 {[%clk 0:02:59.6]} 3. Nc3 {[%clk 0:02:59.9]} 3... Bg7 {[%clk 0:02:59.7]}
4. e4 {[%clk 0:02:59.2]} 4... d6 {[%clk 0:03:00.3]} 5. Nge2 {[%clk 0:02:57.9]}
5... O-O {[%clk 0:02:55.6]} 6. Ng3 {[%clk 0:02:57.6]} 6... e5 {[%clk 0:02:56.1]}
7. d5 {[%clk 0:02:57.4]} 7... h5 {[%clk 0:02:55.6]} 8. h4 {[%clk 0:02:56.6]}
8... Nh7 {[%clk 0:02:54.7]} 9. Be2 {[%clk 0:02:56.3]} 9... Bf6 {[%clk
0:02:54.6]} 10. Nf1 {[%clk 0:02:35.9]} 10... Bxh4 {[%clk 0:02:34.2]} 11. Bxh5
{[%clk 0:02:34.8]} 11... Bg5 {[%clk 0:02:34.7]} 12. Bf3 {[%clk 0:02:19.2]} 12...
Kg7 {[%clk 0:02:33.9]} 13. Ng3 {[%clk 0:02:16.7]} 13... Rh8 {[%clk 0:02:29.6]}
14. Bg4 {[%clk 0:02:13.4]} 14... Na6 {[%clk 0:02:16.7]} 15. Bxc8 {[%clk
0:02:09.9]} 15... Rxc8 {[%clk 0:02:15]} 16. Bd2 {[%clk 0:01:50.1]} 16... Nc5
{[%clk 0:02:12.3]} 17. Qe2 {[%clk 0:01:45.7]} 17... Bxd2+ {[%clk 0:02:05.1]} 18.
Qxd2 {[%clk 0:01:46.6]} 18... Nf6 {[%clk 0:01:57.2]} 19. O-O-O {[%clk
0:01:44.2]} 19... Qe7 {[%clk 0:01:56.5]} 20. Nf5+ {[%clk 0:01:38.8]} 20... gxf5
{[%clk 0:01:50.6]} 21. Qg5+ {[%clk 0:01:38.5]} 1-0

[Event "*** SCC Grand Prix: Titled Tuesday Blitz"]
[Site "Chess.com"]
[Date "2020.09.29"]
[Round "3"]
[White "TheMagnet"]
[Black "goldenpuppy"]
[Result "1-0"]
[WhiteElo "2599"]
[BlackElo "2383"]
[TimeControl "180+1"]
[EndTime "10:24:22 PDT"]
[Termination "TheMagnet won by resignation"]

1. d4 {[%clk 0:03:00.9]} 1... Nf6 {[%clk 0:02:57.8]} 2. c4 {[%clk 0:02:56.1]}
2... e6 {[%clk 0:02:57.5]} 3. Nc3 {[%clk 0:02:56]} 3... Bb4 {[%clk 0:02:56.9]}
4. f3 {[%clk 0:02:56.2]} 4... Nc6 {[%clk 0:02:56.1]} 5. a3 {[%clk 0:02:47.8]}
5... Bxc3+ {[%clk 0:02:55.4]} 6. bxc3 {[%clk 0:02:48.7]} 6... b6 {[%clk
0:02:55.4]} 7. e4 {[%clk 0:02:47.3]} 7... Ba6 {[%clk 0:02:50.7]} 8. Bd3 {[%clk
0:02:45.1]} 8... Qc8 {[%clk 0:02:47.4]} 9. e5 {[%clk 0:02:27.6]} 9... Ng8 {[%clk
0:02:46]} 10. Qe2 {[%clk 0:02:22.6]} 10... Nge7 {[%clk 0:02:45.3]} 11. f4 {[%clk
0:02:21.6]} 11... Na5 {[%clk 0:02:39.8]} 12. Ra2 {[%clk 0:02:08.1]} 12... d5
{[%clk 0:02:31.7]} 13. cxd5 {[%clk 0:01:55.9]} 13... Bxd3 {[%clk 0:02:30.1]} 14.
Qxd3 {[%clk 0:01:56.8]} 14... exd5 {[%clk 0:02:29.8]} 15. Ne2 {[%clk 0:01:48.5]}
15... Nc4 {[%clk 0:02:25.7]} 16. O-O {[%clk 0:01:47.1]} 16... Qa6 {[%clk
0:02:22.4]} 17. f5 {[%clk 0:01:42.6]} 17... O-O-O {[%clk 0:02:18.3]} 18. Bg5
{[%clk 0:01:34.2]} 18... Rd7 {[%clk 0:02:02.2]} 19. e6 {[%clk 0:01:29.7]} 19...
fxe6 {[%clk 0:01:39]} 20. fxe6 {[%clk 0:01:30.6]} 20... Rd6 {[%clk 0:01:39]} 21.
Bxe7 {[%clk 0:01:28]} 21... Rxe6 {[%clk 0:01:39.3]} 22. Qh3 {[%clk 0:01:22.5]}
22... b5 {[%clk 0:01:35.6]} 23. Nf4 {[%clk 0:01:22.2]} 1-0

[Event "*** SCC Grand Prix: Titled Tuesday Blitz"]
[Site "Chess.com"]
[Date "2020.09.29"]
[Round "3"]
[White "Matols"]
[Black "lucasmito"]
[Result "1-0"]
[WhiteElo "2257"]
[BlackElo "2466"]
[TimeControl "180+1"]
[EndTime "10:24:27 PDT"]
[Termination "Matols won by resignation"]

1. d4 {[%clk 0:03:00.9]} 1... d5 {[%clk 0:02:54.5]} 2. c4 {[%clk 0:03:00.2]}
2... dxc4 {[%clk 0:02:52.1]} 3. Nf3 {[%clk 0:02:59.6]} 3... Nf6 {[%clk
0:02:43.5]} 4. e3 {[%clk 0:02:59.5]} 4... b5 {[%clk 0:02:42.3]} 5. a4 {[%clk
0:02:58.6]} 5... b4 {[%clk 0:02:41]} 6. Bxc4 {[%clk 0:02:57.5]} 6... e6 {[%clk
0:02:38.4]} 7. O-O {[%clk 0:02:56.5]} 7... Be7 {[%clk 0:02:38]} 8. Nbd2 {[%clk
0:02:45.3]} 8... Bb7 {[%clk 0:02:35.9]} 9. Nb3 {[%clk 0:02:41.2]} 9... Nbd7
{[%clk 0:02:32.6]} 10. a5 {[%clk 0:02:37.6]} 10... c5 {[%clk 0:02:32.4]} 11. a6
{[%clk 0:02:28.9]} 11... Bxf3 {[%clk 0:02:31.7]} 12. Qxf3 {[%clk 0:02:25.8]}
12... cxd4 {[%clk 0:02:31.3]} 13. Nxd4 {[%clk 0:02:20.8]} 13... O-O {[%clk
0:02:31.1]} 14. Nc6 {[%clk 0:02:15.1]} 14... Qe8 {[%clk 0:02:31.5]} 15. Nxe7+
{[%clk 0:02:11.3]} 15... Qxe7 {[%clk 0:02:32.4]} 16. Qg3 {[%clk 0:02:04.7]}
16... Ne4 {[%clk 0:02:32.6]} 17. Qf4 {[%clk 0:01:58.8]} 17... Nd6 {[%clk
0:02:31.7]} 18. b3 {[%clk 0:01:51.1]} 18... Nxc4 {[%clk 0:02:31.3]} 19. Qxc4
{[%clk 0:01:49.7]} 19... Rfc8 {[%clk 0:02:31.4]} 20. Qd4 {[%clk 0:01:46.8]}
20... e5 {[%clk 0:02:09.2]} 21. Qd5 {[%clk 0:01:21.4]} 21... Nb8 {[%clk
0:02:02.8]} 22. Qxa8 {[%clk 0:01:14.9]} 22... Qd7 {[%clk 0:01:50.2]} 23. Qb7
{[%clk 0:01:11.4]} 1-0

[Event "*** SCC Grand Prix: Titled Tuesday Blitz"]
[Site "Chess.com"]
[Date "2020.09.29"]
[Round "3"]
[White "tteshan"]
[Black "Roza_Idrisova"]
[Result "1-0"]
[WhiteElo "2351"]
[BlackElo "2115"]
[TimeControl "180+1"]
[EndTime "10:24:30 PDT"]
[Termination "tteshan won by resignation"]

1. e4 {[%clk 0:03:00.9]} 1... c6 {[%clk 0:02:59.4]} 2. d4 {[%clk 0:02:57.1]}
2... d5 {[%clk 0:02:59.1]} 3. Nc3 {[%clk 0:02:57.7]} 3... a6 {[%clk 0:02:58.5]}
4. Nf3 {[%clk 0:02:57.4]} 4... Bg4 {[%clk 0:02:58]} 5. h3 {[%clk 0:02:57.1]}
5... Bh5 {[%clk 0:02:57.5]} 6. Bd3 {[%clk 0:02:56.3]} 6... e6 {[%clk 0:02:57.4]}
7. O-O {[%clk 0:02:55.9]} 7... Nf6 {[%clk 0:02:56.7]} 8. Re1 {[%clk 0:02:56]}
8... Be7 {[%clk 0:02:56.5]} 9. e5 {[%clk 0:02:43.2]} 9... Nfd7 {[%clk 0:02:56]}
10. Ne2 {[%clk 0:02:43.8]} 10... c5 {[%clk 0:02:52.4]} 11. c3 {[%clk 0:02:43.8]}
11... Nc6 {[%clk 0:02:51.5]} 12. Be3 {[%clk 0:02:41.9]} 12... cxd4 {[%clk
0:02:51.3]} 13. cxd4 {[%clk 0:02:41.7]} 13... Bxf3 {[%clk 0:02:44]} 14. gxf3
{[%clk 0:02:41.5]} 14... g6 {[%clk 0:02:44.1]} 15. Ng3 {[%clk 0:02:35.9]} 15...
O-O {[%clk 0:02:43.2]} 16. f4 {[%clk 0:02:33.1]} 16... Re8 {[%clk 0:02:41.6]}
17. Qg4 {[%clk 0:02:33.2]} 17... Bf8 {[%clk 0:02:38.9]} 18. f5 {[%clk
0:02:33.1]} 18... exf5 {[%clk 0:02:35.3]} 19. Nxf5 {[%clk 0:02:22.9]} 19... h5
{[%clk 0:02:24.9]} 20. Qg3 {[%clk 0:02:18.4]} 20... Kh7 {[%clk 0:02:21.5]} 21.
Nh4 {[%clk 0:02:16.3]} 21... Re6 {[%clk 0:02:15.8]} 22. Kh1 {[%clk 0:02:13]}
22... Be7 {[%clk 0:02:15.6]} 23. Nf3 {[%clk 0:02:09.7]} 23... Nf8 {[%clk
0:02:09.2]} 24. Bg5 {[%clk 0:02:08.5]} 24... Bxg5 {[%clk 0:02:04.9]} 25. Nxg5+
{[%clk 0:02:08.5]} 25... Kh6 {[%clk 0:01:56.8]} 26. Nxf7+ {[%clk 0:02:07.9]}
26... Kg7 {[%clk 0:01:54.5]} 27. Nxd8 {[%clk 0:02:07.8]} 27... Rxd8 {[%clk
0:01:54.3]} 28. f4 {[%clk 0:02:06.2]} 28... Nxd4 {[%clk 0:01:53.1]} 29. f5
{[%clk 0:02:05.2]} 29... Rc6 {[%clk 0:01:47.9]} 30. f6+ {[%clk 0:02:04.4]} 30...
Kf7 {[%clk 0:01:46.3]} 31. Rg1 {[%clk 0:01:59.2]} 31... Re8 {[%clk 0:01:27.2]}
32. Bxg6+ {[%clk 0:01:58]} 32... Nxg6 {[%clk 0:01:27]} 33. Qxg6+ {[%clk
0:01:58.9]} 33... Ke6 {[%clk 0:01:27.1]} 34. f7+ {[%clk 0:01:58.7]} 1-0

[Event "*** SCC Grand Prix: Titled Tuesday Blitz"]
[Site "Chess.com"]
[Date "2020.09.29"]
[Round "3"]
[White "gmpeter008"]
[Black "Sashadav97"]
[Result "1-0"]
[WhiteElo "2382"]
[BlackElo "2550"]
[TimeControl "180+1"]
[EndTime "10:24:35 PDT"]
[Termination "gmpeter008 won by resignation"]

1. d4 {[%clk 0:03:00.9]} 1... d5 {[%clk 0:02:57.6]} 2. Bf4 {[%clk 0:03:00.4]}
2... c5 {[%clk 0:02:57.3]} 3. e3 {[%clk 0:03:00.2]} 3... Nc6 {[%clk 0:02:57.5]}
4. Nf3 {[%clk 0:02:59.5]} 4... Nf6 {[%clk 0:02:57]} 5. Nbd2 {[%clk 0:02:59.3]}
5... Qb6 {[%clk 0:02:56.6]} 6. dxc5 {[%clk 0:02:59.1]} 6... Qxb2 {[%clk
0:02:56.6]} 7. c4 {[%clk 0:02:59.3]} 7... g6 {[%clk 0:02:47.9]} 8. Be2 {[%clk
0:02:53.6]} 8... Bg7 {[%clk 0:02:45.8]} 9. O-O {[%clk 0:02:53.7]} 9... O-O
{[%clk 0:02:45.7]} 10. Qa4 {[%clk 0:02:12.7]} 10... Bd7 {[%clk 0:02:23.7]} 11.
Qb3 {[%clk 0:02:07]} 11... Ne4 {[%clk 0:02:03.6]} 12. Qxb2 {[%clk 0:02:05.5]}
12... Bxb2 {[%clk 0:02:01]} 13. cxd5 {[%clk 0:02:05.8]} 13... Nxd2 {[%clk
0:01:53.1]} 14. Nxd2 {[%clk 0:02:05.1]} 14... Na5 {[%clk 0:01:25.9]} 15. Rab1
{[%clk 0:02:02]} 15... Ba3 {[%clk 0:01:23.7]} 16. Nb3 {[%clk 0:01:38.3]} 16...
Nxb3 {[%clk 0:01:04.1]} 17. Rxb3 {[%clk 0:01:37.8]} 17... Bxc5 {[%clk
0:01:04.7]} 18. Rxb7 {[%clk 0:01:37.8]} 18... Rfe8 {[%clk 0:01:05]} 19. Rxd7
{[%clk 0:01:37.4]} 1-0

[Event "*** SCC Grand Prix: Titled Tuesday Blitz"]
[Site "Chess.com"]
[Date "2020.09.29"]
[Round "3"]
[White "ajgreen"]
[Black "biostatistician"]
[Result "0-1"]
[WhiteElo "2367"]
[BlackElo "2571"]
[TimeControl "180+1"]
[EndTime "10:24:36 PDT"]
[Termination "biostatistician won by resignation"]

1. e4 {[%clk 0:03:00.9]} 1... d5 {[%clk 0:02:59.4]} 2. exd5 {[%clk 0:03:00.7]}
2... Nf6 {[%clk 0:02:59.5]} 3. d4 {[%clk 0:02:57.7]} 3... Bg4 {[%clk 0:02:58.6]}
4. Bb5+ {[%clk 0:02:28.1]} 4... Nbd7 {[%clk 0:02:57.3]} 5. f3 {[%clk 0:02:12.8]}
5... Bf5 {[%clk 0:02:56.3]} 6. c4 {[%clk 0:02:06.9]} 6... a6 {[%clk 0:02:50.7]}
7. Bxd7+ {[%clk 0:02:00.1]} 7... Qxd7 {[%clk 0:02:49.3]} 8. Nc3 {[%clk 0:02:00]}
8... e6 {[%clk 0:02:34.3]} 9. dxe6 {[%clk 0:01:59.5]} 9... Qxe6+ {[%clk
0:02:34.6]} 10. Qe2 {[%clk 0:01:54.7]} 10... O-O-O {[%clk 0:02:34.1]} 11. Qxe6+
{[%clk 0:01:53.8]} 11... Bxe6 {[%clk 0:02:34.1]} 12. d5 {[%clk 0:01:53.1]} 12...
Bf5 {[%clk 0:02:33.8]} 13. Be3 {[%clk 0:01:44]} 13... Bd3 {[%clk 0:02:28]} 14.
b3 {[%clk 0:01:41.6]} 14... Bb4 {[%clk 0:02:27.2]} 15. Kd2 {[%clk 0:01:38.8]}
15... Nxd5 {[%clk 0:02:05.8]} 16. Kxd3 {[%clk 0:01:18.2]} 16... Nxe3+ {[%clk
0:01:53.3]} 17. Kxe3 {[%clk 0:01:15.7]} 17... Bxc3 {[%clk 0:01:53.6]} 18. Rb1
{[%clk 0:01:05.4]} 18... Rhe8+ {[%clk 0:01:48.1]} 19. Kf4 {[%clk 0:01:05.1]}
19... Rd2 {[%clk 0:01:40.4]} 0-1

[Event "*** SCC Grand Prix: Titled Tuesday Blitz"]
[Site "Chess.com"]
[Date "2020.09.29"]
[Round "3"]
[White "ljuks68"]
[Black "AleksanderHnydiuk"]
[Result "0-1"]
[WhiteElo "2360"]
[BlackElo "2549"]
[TimeControl "180+1"]
[EndTime "10:24:42 PDT"]
[Termination "AleksanderHnydiuk won by resignation"]

1. e4 {[%clk 0:02:53.5]} 1... c5 {[%clk 0:02:59.7]} 2. Nf3 {[%clk 0:02:53]} 2...
e6 {[%clk 0:02:59.8]} 3. d4 {[%clk 0:02:53.1]} 3... cxd4 {[%clk 0:03:00.7]} 4.
Nxd4 {[%clk 0:02:52.8]} 4... Nc6 {[%clk 0:03:01]} 5. Nc3 {[%clk 0:02:50.9]} 5...
a6 {[%clk 0:03:00.2]} 6. Nxc6 {[%clk 0:02:49.3]} 6... bxc6 {[%clk 0:03:00.2]} 7.
Bd3 {[%clk 0:02:49.9]} 7... d5 {[%clk 0:03:00.6]} 8. O-O {[%clk 0:02:48.1]} 8...
Nf6 {[%clk 0:03:01.1]} 9. e5 {[%clk 0:02:47.8]} 9... Nd7 {[%clk 0:03:01]} 10.
Re1 {[%clk 0:02:41.9]} 10... g6 {[%clk 0:02:59.7]} 11. Bf4 {[%clk 0:02:31.1]}
11... Bg7 {[%clk 0:02:59.5]} 12. b3 {[%clk 0:02:30.9]} 12... O-O {[%clk
0:02:59.7]} 13. Na4 {[%clk 0:02:27.8]} 13... f6 {[%clk 0:02:58.2]} 14. exf6
{[%clk 0:02:10.4]} 14... Qxf6 {[%clk 0:02:59.1]} 15. Bg3 {[%clk 0:02:06]} 15...
Qxa1 {[%clk 0:02:54]} 16. Qxa1 {[%clk 0:02:05.8]} 16... Bxa1 {[%clk 0:02:54.9]}
17. Rxa1 {[%clk 0:02:05.7]} 17... e5 {[%clk 0:02:53.2]} 18. f3 {[%clk
0:02:05.7]} 18... a5 {[%clk 0:02:44.1]} 19. Re1 {[%clk 0:02:01.2]} 19... Ba6
{[%clk 0:02:35]} 20. Bxe5 {[%clk 0:01:40.4]} 20... Bxd3 {[%clk 0:02:32]} 21.
cxd3 {[%clk 0:01:39.8]} 21... Nxe5 {[%clk 0:02:31.9]} 22. Rxe5 {[%clk
0:01:38.9]} 22... Rae8 {[%clk 0:02:31.4]} 23. Rxe8 {[%clk 0:01:26.8]} 23... Rxe8
{[%clk 0:02:32.3]} 24. Kf2 {[%clk 0:01:26.7]} 24... d4 {[%clk 0:02:29.7]} 25. f4
{[%clk 0:01:19.7]} 25... Re3 {[%clk 0:02:29.3]} 26. Nc5 {[%clk 0:01:17.8]} 26...
Kf7 {[%clk 0:02:27.8]} 27. a4 {[%clk 0:00:50.3]} 27... Ke7 {[%clk 0:02:16.2]}
28. g3 {[%clk 0:00:47.2]} 28... Kd6 {[%clk 0:02:14.6]} 0-1

[Event "*** SCC Grand Prix: Titled Tuesday Blitz"]
[Site "Chess.com"]
[Date "2020.09.29"]
[Round "3"]
[White "LawrenceTrent"]
[Black "leoduarte"]
[Result "1-0"]
[WhiteElo "2513"]
[BlackElo "2300"]
[TimeControl "180+1"]
[EndTime "10:24:42 PDT"]
[Termination "LawrenceTrent won on time"]

1. d4 {[%clk 0:03:00]} 1... Nf6 {[%clk 0:02:57.3]} 2. Nc3 {[%clk 0:03:00.9]}
2... d5 {[%clk 0:02:49.1]} 3. Bf4 {[%clk 0:03:01.2]} 3... c5 {[%clk 0:02:37.3]}
4. e3 {[%clk 0:03:00.3]} 4... Nc6 {[%clk 0:02:36.6]} 5. Nb5 {[%clk 0:02:59]}
5... e5 {[%clk 0:01:52.5]} 6. dxe5 {[%clk 0:02:58.9]} 6... Ng4 {[%clk
0:01:31.8]} 7. Qxd5 {[%clk 0:02:56.1]} 7... Qa5+ {[%clk 0:01:04.5]} 8. c3 {[%clk
0:02:51.1]} 8... Be6 {[%clk 0:00:58.8]} 9. Qe4 {[%clk 0:02:51.2]} 9... O-O-O
{[%clk 0:00:46.6]} 10. h3 {[%clk 0:02:50.5]} 10... Nh6 {[%clk 0:00:41.4]} 11.
Nf3 {[%clk 0:02:49.9]} 11... Bf5 {[%clk 0:00:20.6]} 12. Qc4 {[%clk 0:02:49.7]}
12... Be6 {[%clk 0:00:17.2]} 13. Qe2 {[%clk 0:02:49.7]} 13... Be7 {[%clk
0:00:11.6]} 14. g4 {[%clk 0:02:49.4]} 14... f6 {[%clk 0:00:10.4]} 15. exf6
{[%clk 0:02:48.6]} 15... Bxf6 {[%clk 0:00:10.5]} 16. g5 {[%clk 0:02:48.9]} 16...
a6 {[%clk 0:00:06.7]} 17. Nd6+ {[%clk 0:02:48.4]} 17... Rxd6 {[%clk 0:00:04]}
18. Bxd6 {[%clk 0:02:49.3]} 18... Nf7 {[%clk 0:00:03.7]} 19. gxf6 {[%clk
0:02:47.1]} 19... Nxd6 {[%clk 0:00:04.3]} 20. fxg7 {[%clk 0:02:46.2]} 20... Rd8
{[%clk 0:00:04.8]} 21. Bg2 {[%clk 0:02:45.8]} 21... Bc4 {[%clk 0:00:04.3]} 22.
Qc2 {[%clk 0:02:45.1]} 22... Ne5 {[%clk 0:00:03]} 23. Nxe5 {[%clk 0:02:45]} 1-0

[Event "*** SCC Grand Prix: Titled Tuesday Blitz"]
[Site "Chess.com"]
[Date "2020.09.29"]
[Round "3"]
[White "KingCrusher275"]
[Black "Rital44"]
[Result "1-0"]
[WhiteElo "2550"]
[BlackElo "2361"]
[TimeControl "180+1"]
[EndTime "10:24:45 PDT"]
[Termination "KingCrusher275 won by resignation"]

1. d4 {[%clk 0:03:00.9]} 1... e5 {[%clk 0:02:59.6]} 2. dxe5 {[%clk 0:02:58.8]}
2... Nc6 {[%clk 0:03:00.2]} 3. Nf3 {[%clk 0:02:58.2]} 3... Qe7 {[%clk
0:03:00.9]} 4. Bf4 {[%clk 0:02:56.5]} 4... Qb4+ {[%clk 0:03:01.5]} 5. Nc3 {[%clk
0:02:36.9]} 5... Qxf4 {[%clk 0:02:53.4]} 6. Nd5 {[%clk 0:02:36.7]} 6... Qa4
{[%clk 0:02:50.6]} 7. Nxc7+ {[%clk 0:02:33]} 7... Kd8 {[%clk 0:02:50.6]} 8. Nxa8
{[%clk 0:02:32.5]} 8... Nb4 {[%clk 0:02:49]} 9. c3 {[%clk 0:02:30.4]} 9... Qxd1+
{[%clk 0:02:33.6]} 10. Rxd1 {[%clk 0:02:31.3]} 10... Nc6 {[%clk 0:02:31.6]} 11.
e3 {[%clk 0:02:20.3]} 11... b6 {[%clk 0:02:29.3]} 12. Bb5 {[%clk 0:02:15.9]}
12... Bb7 {[%clk 0:02:28.1]} 13. e6 {[%clk 0:01:49.5]} 13... fxe6 {[%clk
0:02:19]} 14. Bxc6 {[%clk 0:01:48.8]} 14... Bxc6 {[%clk 0:02:17.4]} 15. Ne5
{[%clk 0:01:48.8]} 15... Ke8 {[%clk 0:02:08.9]} 16. Nxc6 {[%clk 0:01:46.4]}
16... dxc6 {[%clk 0:02:09.8]} 17. Nc7+ {[%clk 0:01:43.6]} 17... Kf7 {[%clk
0:02:09.9]} 18. O-O {[%clk 0:01:43.4]} 18... Nf6 {[%clk 0:02:09.7]} 19. Rd8
{[%clk 0:01:39.9]} 19... h5 {[%clk 0:02:02.2]} 20. Rfd1 {[%clk 0:01:39.1]} 20...
h4 {[%clk 0:02:01.2]} 21. h3 {[%clk 0:01:37.2]} 21... Ne4 {[%clk 0:01:58.1]} 22.
R1d7+ {[%clk 0:01:32.5]} 22... Kf6 {[%clk 0:01:56.7]} 23. Re8 {[%clk 0:01:30.2]}
23... Nc5 {[%clk 0:01:46.9]} 24. Rdd8 {[%clk 0:01:26.5]} 24... Kf7 {[%clk
0:01:47.2]} 25. b4 {[%clk 0:01:15.8]} 25... Nb7 {[%clk 0:01:44.7]} 26. Rd7+
{[%clk 0:01:13.4]} 26... Kf6 {[%clk 0:01:44.1]} 27. Nxe6 {[%clk 0:01:13.3]}
27... Nd6 {[%clk 0:01:41]} 28. Rxf8+ {[%clk 0:01:11.9]} 28... Kxe6 {[%clk
0:01:41.2]} 29. Rxd6+ {[%clk 0:01:09.6]} 1-0

[Event "*** SCC Grand Prix: Titled Tuesday Blitz"]
[Site "Chess.com"]
[Date "2020.09.29"]
[Round "3"]
[White "hawes33"]
[Black "Marcin"]
[Result "0-1"]
[WhiteElo "2200"]
[BlackElo "2474"]
[TimeControl "180+1"]
[EndTime "10:24:57 PDT"]
[Termination "Marcin won by resignation"]

1. e4 {[%clk 0:03:00.9]} 1... c5 {[%clk 0:02:58.2]} 2. Nc3 {[%clk 0:03:00.8]}
2... Nc6 {[%clk 0:02:56.4]} 3. g3 {[%clk 0:02:53.9]} 3... g6 {[%clk 0:02:51.8]}
4. d3 {[%clk 0:02:45.9]} 4... Bg7 {[%clk 0:02:51.4]} 5. Be3 {[%clk 0:02:45.7]}
5... d6 {[%clk 0:02:51.4]} 6. Qd2 {[%clk 0:02:45.6]} 6... Nd4 {[%clk 0:02:49.8]}
7. Nce2 {[%clk 0:02:40.4]} 7... Bg4 {[%clk 0:02:38.6]} 8. Bg2 {[%clk 0:02:38.7]}
8... Nxe2 {[%clk 0:02:35.1]} 9. Nxe2 {[%clk 0:02:38.4]} 9... Bxb2 {[%clk
0:02:35.4]} 10. Rb1 {[%clk 0:02:38.3]} 10... Bg7 {[%clk 0:02:35.3]} 11. Rxb7
{[%clk 0:02:37.6]} 11... Nf6 {[%clk 0:02:34.3]} 12. h3 {[%clk 0:02:36.8]} 12...
Bc8 {[%clk 0:02:30.9]} 13. Rb1 {[%clk 0:02:36]} 13... e5 {[%clk 0:02:27.8]} 14.
Bh6 {[%clk 0:02:34.9]} 14... O-O {[%clk 0:02:27.7]} 15. g4 {[%clk 0:02:33.3]}
15... Be6 {[%clk 0:02:23.5]} 16. Ng3 {[%clk 0:02:27.7]} 16... Rc8 {[%clk
0:02:10.3]} 17. Bxg7 {[%clk 0:02:17.4]} 17... Kxg7 {[%clk 0:02:10]} 18. O-O
{[%clk 0:02:17.6]} 18... d5 {[%clk 0:02:04.7]} 19. f4 {[%clk 0:02:15.4]} 19...
exf4 {[%clk 0:02:02.9]} 20. Qxf4 {[%clk 0:02:16.3]} 20... dxe4 {[%clk 0:02:02]}
21. Qe5 {[%clk 0:02:08.5]} 21... Qd4+ {[%clk 0:02:00]} 22. Qxd4 {[%clk
0:02:08.3]} 22... cxd4 {[%clk 0:02:00.2]} 23. Nxe4 {[%clk 0:02:07.1]} 23... Nxe4
{[%clk 0:02:00.2]} 24. Bxe4 {[%clk 0:02:04.6]} 24... Rxc2 {[%clk 0:01:59.9]} 25.
a4 {[%clk 0:01:55.2]} 25... Ra2 {[%clk 0:01:53.2]} 26. Rb4 {[%clk 0:01:53.8]}
26... Rd8 {[%clk 0:01:50.1]} 27. Bc6 {[%clk 0:01:52.7]} 27... Rc8 {[%clk
0:01:40.7]} 28. Bb5 {[%clk 0:01:29.3]} 28... Rcc2 {[%clk 0:01:39.7]} 29. Rfb1
{[%clk 0:01:21.2]} 29... Rg2+ {[%clk 0:01:37.6]} 30. Kf1 {[%clk 0:01:21.1]}
30... Rh2 {[%clk 0:01:34.4]} 31. Kg1 {[%clk 0:01:21.4]} 31... Rag2+ {[%clk
0:01:34]} 32. Kf1 {[%clk 0:01:20.8]} 32... Bd5 {[%clk 0:01:34.5]} 0-1

[Event "*** SCC Grand Prix: Titled Tuesday Blitz"]
[Site "Chess.com"]
[Date "2020.09.29"]
[Round "3"]
[White "giantslayer83"]
[Black "julinha97"]
[Result "1-0"]
[WhiteElo "2699"]
[BlackElo "2293"]
[TimeControl "180+1"]
[EndTime "10:25:04 PDT"]
[Termination "giantslayer83 won on time"]

1. c4 {[%clk 0:03:00.9]} 1... e5 {[%clk 0:02:59.3]} 2. Nc3 {[%clk 0:03:00.5]}
2... Nf6 {[%clk 0:02:58.3]} 3. Nf3 {[%clk 0:03:00.8]} 3... Nc6 {[%clk
0:02:58.2]} 4. e3 {[%clk 0:03:00.9]} 4... g6 {[%clk 0:02:58.2]} 5. d4 {[%clk
0:02:58.1]} 5... exd4 {[%clk 0:02:59.1]} 6. exd4 {[%clk 0:02:58.7]} 6... d5
{[%clk 0:02:58.8]} 7. Bg5 {[%clk 0:02:55.9]} 7... Bb4 {[%clk 0:02:41]} 8. cxd5
{[%clk 0:02:44.3]} 8... Qe7+ {[%clk 0:01:00.5]} 9. Be2 {[%clk 0:02:34.9]} 9...
Bxc3+ {[%clk 0:00:48.3]} 10. bxc3 {[%clk 0:02:35.8]} 10... Nb8 {[%clk
0:00:48.2]} 11. O-O {[%clk 0:02:33.1]} 11... O-O {[%clk 0:00:48]} 12. Re1 {[%clk
0:02:29.5]} 12... Qd6 {[%clk 0:00:47.9]} 13. c4 {[%clk 0:02:26.2]} 13... Ne4
{[%clk 0:00:41]} 14. Bh6 {[%clk 0:02:25.9]} 14... Rd8 {[%clk 0:00:36.2]} 15. Bd3
{[%clk 0:02:25.5]} 15... Nf6 {[%clk 0:00:28.8]} 16. Ne5 {[%clk 0:02:21.3]} 16...
Nbd7 {[%clk 0:00:20.1]} 17. Qf3 {[%clk 0:02:20.6]} 17... c6 {[%clk 0:00:09.2]}
18. Nxd7 {[%clk 0:02:11.3]} 18... Bxd7 {[%clk 0:00:08]} 19. c5 {[%clk
0:02:11.1]} 19... Qxd5 {[%clk 0:00:01.9]} 20. Qxf6 {[%clk 0:02:10.9]} 1-0